[Event "*** Titled Tuesday Blitz"]
[Site "Chess.com"]
[Date "2018.06.05"]
[Round "2"]
[White "Aleksandr_Kholin"]
[Black "AlexTruskavetsky"]
[Result "1-0"]
[WhiteElo "2425"]
[BlackElo "2284"]
[TimeControl "180+2"]
[EndTime "13:25:53 PDT"]
[Termination "Aleksandr_Kholin won by resignation"]

1. d4 {[%clk 0:03:01.9]} 1... Nf6 {[%clk 0:02:59.3]} 2. c4 {[%clk 0:03:02.8]}
2... g6 {[%clk 0:03:00.6]} 3. Nc3 {[%clk 0:03:01.3]} 3... d5 {[%clk 0:03:02]} 4.
Nf3 {[%clk 0:02:59.9]} 4... Bg7 {[%clk 0:03:01.2]} 5. Bg5 {[%clk 0:03:00.3]}
5... Ne4 {[%clk 0:02:58.7]} 6. Bf4 {[%clk 0:02:58.8]} 6... Nxc3 {[%clk
0:02:53.2]} 7. bxc3 {[%clk 0:03:00.7]} 7... c5 {[%clk 0:02:44.6]} 8. cxd5 {[%clk
0:02:59.9]} 8... cxd4 {[%clk 0:02:34.4]} 9. cxd4 {[%clk 0:02:58.1]} 9... Qxd5
{[%clk 0:02:30.8]} 10. e3 {[%clk 0:02:58]} 10... O-O {[%clk 0:02:27.8]} 11. Be2
{[%clk 0:02:54.9]} 11... Qa5+ {[%clk 0:02:26.9]} 12. Qd2 {[%clk 0:02:53.7]}
12... Qxd2+ {[%clk 0:02:27]} 13. Nxd2 {[%clk 0:02:55.1]} 13... Nc6 {[%clk
0:02:26.5]} 14. O-O {[%clk 0:02:55]} 14... e5 {[%clk 0:02:22.4]} 15. dxe5 {[%clk
0:02:56.8]} 15... Nxe5 {[%clk 0:02:23.3]} 16. Rab1 {[%clk 0:02:56.9]} 16... b6
{[%clk 0:02:15.7]} 17. Rfc1 {[%clk 0:02:56.5]} 17... Bf5 {[%clk 0:02:13.2]} 18.
e4 {[%clk 0:02:54.9]} 18... Be6 {[%clk 0:02:07.7]} 19. a3 {[%clk 0:02:56.1]}
19... Rac8 {[%clk 0:02:04.6]} 20. Ba6 {[%clk 0:02:53.3]} 20... Rcd8 {[%clk
0:01:39.8]} 21. Rc7 {[%clk 0:02:47.2]} 21... Nd3 {[%clk 0:01:26.2]} 22. Be3
{[%clk 0:02:39.1]} 22... Nc5 {[%clk 0:01:13.4]} 23. Bb5 {[%clk 0:02:19.9]} 23...
Bc3 {[%clk 0:01:10.3]} 24. Bxc5 {[%clk 0:02:16.8]} 24... bxc5 {[%clk 0:01:07.8]}
25. Nf3 {[%clk 0:02:18]} 25... Ba5 {[%clk 0:00:32.8]} 26. Rxa7 {[%clk
0:02:15.2]} 26... Ra8 {[%clk 0:00:27.1]} 27. Rxa8 {[%clk 0:02:13.7]} 27... Rxa8
{[%clk 0:00:29]} 28. h4 {[%clk 0:02:11.9]} 28... c4 {[%clk 0:00:28.6]} 29. Nd4
{[%clk 0:02:10.4]} 29... c3 {[%clk 0:00:22.4]} 30. Nxe6 {[%clk 0:02:10.5]} 30...
fxe6 {[%clk 0:00:22.8]} 31. Rc1 {[%clk 0:02:11.7]} 31... Rd8 {[%clk 0:00:20.1]}
32. Kf1 {[%clk 0:02:10.3]} 32... Rd2 {[%clk 0:00:20.8]} 33. Bc4 {[%clk
0:02:08.8]} 33... Kf7 {[%clk 0:00:21.1]} 34. Bb3 {[%clk 0:02:10.1]} 34... Kf6
{[%clk 0:00:13.5]} 35. g3 {[%clk 0:02:07.8]} 35... Ke5 {[%clk 0:00:13.7]} 36.
Rc2 {[%clk 0:02:06.8]} 36... Rd4 {[%clk 0:00:12.4]} 37. Re2 {[%clk 0:02:05.5]}
37... Rd2 {[%clk 0:00:11.2]} 38. Rxd2 {[%clk 0:02:04.3]} 38... cxd2 {[%clk
0:00:11.3]} 39. Ke2 {[%clk 0:02:05.9]} 39... Kxe4 {[%clk 0:00:11.9]} 40. Bxe6
{[%clk 0:02:06.9]} 40... Kd4 {[%clk 0:00:12.7]} 41. Bg8 {[%clk 0:02:07.9]} 41...
h6 {[%clk 0:00:12.4]} 42. Bf7 {[%clk 0:02:08.2]} 42... g5 {[%clk 0:00:13.3]} 43.
hxg5 {[%clk 0:02:10.1]} 43... hxg5 {[%clk 0:00:14.2]} 44. Be8 {[%clk 0:02:10.7]}
44... Kc3 {[%clk 0:00:15]} 45. Kd1 {[%clk 0:02:05.1]} 45... Bc7 {[%clk 0:00:15]}
46. a4 {[%clk 0:02:04.3]} 46... Kd3 {[%clk 0:00:14.2]} 47. Bb5+ {[%clk
0:02:05.4]} 47... Kc3 {[%clk 0:00:14.8]} 48. Bc6 {[%clk 0:02:01]} 48... Bb6
{[%clk 0:00:14.4]} 49. f3 {[%clk 0:02:01.5]} 49... Bc7 {[%clk 0:00:14.8]} 50. f4
{[%clk 0:01:57.7]} 50... gxf4 {[%clk 0:00:14.5]} 51. g4 {[%clk 0:01:59.2]} 51...
Kd3 {[%clk 0:00:08.9]} 52. g5 {[%clk 0:01:59.1]} 52... Kc4 {[%clk 0:00:04.8]}
53. g6 {[%clk 0:01:59.1]} 53... Be5 {[%clk 0:00:06.2]} 54. Kxd2 {[%clk
0:01:59.9]} 54... Kc5 {[%clk 0:00:06.7]} 55. Be8 {[%clk 0:01:59.4]} 55... Kb4
{[%clk 0:00:07]} 56. Ke2 {[%clk 0:02:00.5]} 56... Bg7 {[%clk 0:00:04.8]} 57. Kf3
{[%clk 0:02:01.3]} 57... Kc5 {[%clk 0:00:03.9]} 58. Kxf4 {[%clk 0:02:02.2]}
58... Kd6 {[%clk 0:00:04.8]} 59. Kf5 {[%clk 0:02:03.4]} 59... Ke7 {[%clk
0:00:05.8]} 60. Bb5 {[%clk 0:02:03.7]} 60... Bd4 {[%clk 0:00:05.7]} 61. Bc4
{[%clk 0:02:04.8]} 61... Kf8 {[%clk 0:00:06.1]} 62. a5 {[%clk 0:02:05.2]} 62...
Kg7 {[%clk 0:00:05.8]} 63. a6 {[%clk 0:02:03.7]} 63... Bc5 {[%clk 0:00:05.1]}
64. Bf7 {[%clk 0:02:05.5]} 64... Bd4 {[%clk 0:00:05.3]} 65. Ke6 {[%clk
0:02:07.4]} 65... Be3 {[%clk 0:00:06.1]} 66. Kd7 {[%clk 0:02:09.3]} 66... Bf2
{[%clk 0:00:06.5]} 67. Kc6 {[%clk 0:02:11.2]} 67... Be3 {[%clk 0:00:05.4]} 68.
Kb7 {[%clk 0:02:13.1]} 68... Bf2 {[%clk 0:00:05.5]} 69. a7 {[%clk 0:02:15]}
69... Bxa7 {[%clk 0:00:05.5]} 70. Kxa7 {[%clk 0:02:16.9]} 70... Kf6 {[%clk
0:00:05.2]} 71. Kb7 {[%clk 0:02:18.8]} 71... Kg7 {[%clk 0:00:06]} 72. Kc6 {[%clk
0:02:20.7]} 72... Kf6 {[%clk 0:00:06.8]} 73. Kd6 {[%clk 0:02:22.6]} 73... Kg7
{[%clk 0:00:07.7]} 74. Ke7 {[%clk 0:02:24.5]} 74... Kh8 {[%clk 0:00:07.8]} 75.
Bb3 {[%clk 0:02:22.3]} 75... Kg7 {[%clk 0:00:08.5]} 76. Bc2 {[%clk 0:02:23.9]}
76... Kh8 {[%clk 0:00:04.8]} 77. Kf6 {[%clk 0:02:24.9]} 77... Kg8 {[%clk
0:00:05.4]} 78. Bb3+ {[%clk 0:02:22.1]} 1-0

[Event "*** Titled Tuesday Blitz"]
[Site "Chess.com"]
[Date "2018.06.05"]
[Round "2"]
[White "TrimitziosP7"]
[Black "carlesdc96"]
[Result "1/2-1/2"]
[WhiteElo "2754"]
[BlackElo "2551"]
[TimeControl "180+2"]
[EndTime "13:25:56 PDT"]
[Termination "Game drawn by repetition"]

1. Nf3 {[%clk 0:03:01.9]} 1... Nf6 {[%clk 0:03:00.6]} 2. c4 {[%clk 0:03:02.6]}
2... e6 {[%clk 0:03:01.5]} 3. g3 {[%clk 0:03:02.6]} 3... d5 {[%clk 0:03:01.9]}
4. Bg2 {[%clk 0:03:03.9]} 4... dxc4 {[%clk 0:03:02.9]} 5. Qa4+ {[%clk
0:03:04.6]} 5... Bd7 {[%clk 0:03:03.7]} 6. Qxc4 {[%clk 0:03:05.5]} 6... c5
{[%clk 0:03:05.3]} 7. Ne5 {[%clk 0:03:06]} 7... Qc8 {[%clk 0:03:06.3]} 8. Nxd7
{[%clk 0:03:06.7]} 8... Qxd7 {[%clk 0:03:05.9]} 9. O-O {[%clk 0:03:07.7]} 9...
Nc6 {[%clk 0:03:06.6]} 10. d3 {[%clk 0:03:09.2]} 10... Rc8 {[%clk 0:03:05.2]}
11. Nc3 {[%clk 0:03:07]} 11... Be7 {[%clk 0:03:05.4]} 12. Qb3 {[%clk 0:03:06.4]}
12... O-O {[%clk 0:03:04.7]} 13. Be3 {[%clk 0:03:06.9]} 13... b6 {[%clk
0:03:03.1]} 14. Rfd1 {[%clk 0:03:07]} 14... Rfd8 {[%clk 0:03:03.1]} 15. Rac1
{[%clk 0:03:06.6]} 15... Nd5 {[%clk 0:03:02.2]} 16. Nxd5 {[%clk 0:02:50.5]}
16... exd5 {[%clk 0:03:04.1]} 17. d4 {[%clk 0:02:49.1]} 17... c4 {[%clk
0:03:04]} 18. Qc2 {[%clk 0:02:49.4]} 18... b5 {[%clk 0:02:59.7]} 19. h4 {[%clk
0:02:47.4]} 19... Bf6 {[%clk 0:02:59.3]} 20. Qd2 {[%clk 0:02:45.3]} 20... Re8
{[%clk 0:02:57.4]} 21. Kh2 {[%clk 0:02:46.4]} 21... Rcd8 {[%clk 0:02:55.9]} 22.
a3 {[%clk 0:02:46.2]} 22... Qc7 {[%clk 0:02:53]} 23. Bf4 {[%clk 0:02:46.5]}
23... Qb6 {[%clk 0:02:52.9]} 24. e3 {[%clk 0:02:47.7]} 24... Na5 {[%clk
0:02:51.2]} 25. Qc2 {[%clk 0:02:47.5]} 25... Nb3 {[%clk 0:02:46.9]} 26. Rb1
{[%clk 0:02:48.5]} 26... a5 {[%clk 0:02:47.3]} 27. Qf5 {[%clk 0:02:47.3]} 27...
g6 {[%clk 0:02:45.8]} 28. Qg4 {[%clk 0:02:47.4]} 28... Qe6 {[%clk 0:02:42.6]}
29. Qf3 {[%clk 0:02:46.4]} 29... Qe7 {[%clk 0:02:38]} 30. Qe2 {[%clk 0:02:42.2]}
30... Nxd4 {[%clk 0:02:32.1]} 31. Qf1 {[%clk 0:02:33.3]} 31... Nc6 {[%clk
0:01:55.8]} 32. Bxd5 {[%clk 0:02:33]} 32... Ne5 {[%clk 0:01:56.1]} 33. a4 {[%clk
0:02:33.3]} 33... bxa4 {[%clk 0:01:26.4]} 34. Bxe5 {[%clk 0:02:32]} 34... Bxe5
{[%clk 0:01:24.7]} 35. Qxc4 {[%clk 0:02:32.7]} 35... Rb8 {[%clk 0:01:17.1]} 36.
Qxa4 {[%clk 0:02:31.6]} 36... Rb4 {[%clk 0:01:13]} 37. Qxa5 {[%clk 0:02:16.9]}
37... Bxb2 {[%clk 0:00:57.1]} 38. Kg2 {[%clk 0:02:13]} 38... Reb8 {[%clk
0:00:56.2]} 39. Qa2 {[%clk 0:02:06.7]} 39... Kg7 {[%clk 0:00:54]} 40. Rd2 {[%clk
0:01:59.9]} 40... Bc3 {[%clk 0:00:50.6]} 41. Rxb4 {[%clk 0:02:00.6]} 41... Rxb4
{[%clk 0:00:52.5]} 42. Rc2 {[%clk 0:02:02]} 42... Be5 {[%clk 0:00:52.3]} 43. e4
{[%clk 0:01:58.9]} 43... Bd6 {[%clk 0:00:37]} 44. Re2 {[%clk 0:01:55.9]} 44...
Be5 {[%clk 0:00:32.8]} 45. Qd2 {[%clk 0:01:55.1]} 45... Rb2 {[%clk 0:00:31.8]}
46. Qe3 {[%clk 0:01:56]} 46... Rxe2 {[%clk 0:00:33]} 47. Qxe2 {[%clk 0:01:57.9]}
47... Bd6 {[%clk 0:00:32.6]} 48. f4 {[%clk 0:01:58.9]} 48... f6 {[%clk
0:00:33.6]} 49. Qa6 {[%clk 0:01:56.6]} 49... Qc7 {[%clk 0:00:34.1]} 50. Qa4
{[%clk 0:01:50.8]} 50... Qe7 {[%clk 0:00:33.9]} 51. Qa8 {[%clk 0:01:50.9]} 51...
Qf8 {[%clk 0:00:35]} 52. Qc6 {[%clk 0:01:51]} 52... Qe7 {[%clk 0:00:36]} 53. Kf3
{[%clk 0:01:47.9]} 53... Qd8 {[%clk 0:00:36.9]} 54. g4 {[%clk 0:01:47.9]} 54...
Qc7 {[%clk 0:00:36.3]} 55. g5 {[%clk 0:01:39.4]} 55... Qxc6 {[%clk 0:00:36.7]}
56. Bxc6 {[%clk 0:01:41.3]} 56... fxg5 {[%clk 0:00:31.5]} 57. e5 {[%clk
0:01:40.7]} 57... Be7 {[%clk 0:00:30.3]} 58. hxg5 {[%clk 0:01:41.6]} 58... h6
{[%clk 0:00:31.4]} 59. gxh6+ {[%clk 0:01:41.2]} 59... Kxh6 {[%clk 0:00:32.5]}
60. Kg4 {[%clk 0:01:42.6]} 60... Kg7 {[%clk 0:00:32.8]} 61. Be4 {[%clk 0:01:44]}
61... Bb4 {[%clk 0:00:32.9]} 62. Bd3 {[%clk 0:01:44.4]} 62... Be7 {[%clk
0:00:32.8]} 63. Kf3 {[%clk 0:01:45.6]} 63... Bb4 {[%clk 0:00:32]} 64. Ke4 {[%clk
0:01:46.7]} 64... Bd2 {[%clk 0:00:32.4]} 65. Kf3 {[%clk 0:01:47.7]} 65... Bc1
{[%clk 0:00:32.8]} 66. Kg4 {[%clk 0:01:48.7]} 66... Ba3 {[%clk 0:00:33.8]} 67.
Bc4 {[%clk 0:01:45.7]} 67... Be7 {[%clk 0:00:34.1]} 68. Kf3 {[%clk 0:01:46.8]}
68... Ba3 {[%clk 0:00:33.9]} 69. Ke4 {[%clk 0:01:48]} 69... Bc1 {[%clk
0:00:35.1]} 70. f5 {[%clk 0:01:49.1]} 70... gxf5+ {[%clk 0:00:35.8]} 71. Kxf5
{[%clk 0:01:51]} 71... Ba3 {[%clk 0:00:37.2]} 72. e6 {[%clk 0:01:52.9]} 72...
Kf8 {[%clk 0:00:38.5]} 73. Ke5 {[%clk 0:01:54.5]} 73... Ke7 {[%clk 0:00:39.4]}
74. Kd5 {[%clk 0:01:56.4]} 74... Bd6 {[%clk 0:00:40.7]} 75. Bb5 {[%clk
0:01:58.3]} 75... Bh2 {[%clk 0:00:41.9]} 76. Bd7 {[%clk 0:02:00.2]} 76... Bd6
{[%clk 0:00:43.4]} 77. Ke4 {[%clk 0:02:02.1]} 77... Bh2 {[%clk 0:00:45]} 78. Kf3
{[%clk 0:02:03.9]} 78... Bd6 {[%clk 0:00:46.9]} 79. Kg2 {[%clk 0:02:05.7]} 79...
Bc7 {[%clk 0:00:48.8]} 80. Kf1 {[%clk 0:02:06.9]} 80... Bd6 {[%clk 0:00:50.7]}
81. Ke2 {[%clk 0:02:08.8]} 81... Bc7 {[%clk 0:00:51.7]} 82. Kf3 {[%clk
0:02:10.6]} 82... Bd6 {[%clk 0:00:53.6]} 83. Ke4 {[%clk 0:02:12.2]} 83... Bc7
{[%clk 0:00:55.4]} 84. Kd5 {[%clk 0:02:14.1]} 84... Bd6 {[%clk 0:00:57.3]} 85.
Kc6 {[%clk 0:02:16]} 85... Bg3 {[%clk 0:00:58.3]} 86. Kb5 {[%clk 0:02:17.2]}
86... Bd6 {[%clk 0:00:59.9]} 87. Kc4 {[%clk 0:02:18.5]} 87... Bh2 {[%clk
0:01:01.8]} 88. Kd4 {[%clk 0:02:20.4]} 88... Be5+ {[%clk 0:01:03.6]} 89. Ke4
{[%clk 0:02:22.3]} 89... Bd6 {[%clk 0:01:04.8]} 90. Kd5 {[%clk 0:02:23.4]} 90...
Bc7 {[%clk 0:01:05.6]} 91. Kd4 {[%clk 0:02:25.3]} 91... Bd6 {[%clk 0:01:06.8]}
92. Ke4 {[%clk 0:02:27.1]} 92... Bc7 {[%clk 0:01:08.1]} 93. Kf5 {[%clk 0:02:29]}
93... Bd6 {[%clk 0:01:09.2]} 94. Ke4 {[%clk 0:02:30.9]} 94... Bc7 {[%clk
0:01:10.4]} 95. Kd5 {[%clk 0:02:32.8]} 95... Bd6 {[%clk 0:01:11.6]} 96. Kc6
{[%clk 0:02:34.7]} 96... Bh2 {[%clk 0:01:12.5]} 97. Kb7 {[%clk 0:02:36]} 97...
Bg3 {[%clk 0:01:14]} 98. Kc8 {[%clk 0:02:37.9]} 98... Bh2 {[%clk 0:01:15.9]} 99.
Kb7 {[%clk 0:02:39.4]} 99... Bg3 {[%clk 0:01:17.6]} 100. Kc6 {[%clk 0:02:41.3]}
100... Bh2 {[%clk 0:01:19.5]} 101. Kd5 {[%clk 0:02:43.2]} 101... Bd6 {[%clk
0:01:20.3]} 102. Ke4 {[%clk 0:02:45.1]} 1/2-1/2

[Event "*** Titled Tuesday Blitz"]
[Site "Chess.com"]
[Date "2018.06.05"]
[Round "2"]
[White "Shivagami"]
[Black "Chiinaldo"]
[Result "0-1"]
[WhiteElo "2064"]
[BlackElo "2200"]
[TimeControl "180+2"]
[EndTime "13:26:04 PDT"]
[Termination "Chiinaldo won by resignation"]

1. d4 {[%clk 0:03:00]} 1... d5 {[%clk 0:02:57.9]} 2. Bf4 {[%clk 0:02:59.9]} 2...
Nf6 {[%clk 0:02:56.9]} 3. e3 {[%clk 0:03:00.7]} 3... e6 {[%clk 0:02:53.6]} 4.
Nd2 {[%clk 0:03:00.8]} 4... c5 {[%clk 0:02:52.8]} 5. c3 {[%clk 0:03:01.1]} 5...
Nc6 {[%clk 0:02:53.4]} 6. Ngf3 {[%clk 0:03:01.4]} 6... Bd6 {[%clk 0:02:54.2]} 7.
Bg3 {[%clk 0:03:02.3]} 7... O-O {[%clk 0:02:52.4]} 8. Bd3 {[%clk 0:03:02.9]}
8... b6 {[%clk 0:02:51.6]} 9. Qe2 {[%clk 0:03:02.7]} 9... Bb7 {[%clk 0:02:51]}
10. Rd1 {[%clk 0:03:02.7]} 10... Qc7 {[%clk 0:02:49.8]} 11. a3 {[%clk
0:02:53.1]} 11... e5 {[%clk 0:02:47.8]} 12. dxe5 {[%clk 0:02:46.2]} 12... Nxe5
{[%clk 0:02:46.7]} 13. Nxe5 {[%clk 0:02:45.1]} 13... Bxe5 {[%clk 0:02:46.2]} 14.
Nf3 {[%clk 0:02:45.9]} 14... Bd6 {[%clk 0:02:33.1]} 15. Qc2 {[%clk 0:02:32.3]}
15... Rad8 {[%clk 0:02:26.7]} 16. Bh4 {[%clk 0:02:28.3]} 16... Qe7 {[%clk
0:02:09]} 17. Bxh7+ {[%clk 0:02:25.1]} 17... Kh8 {[%clk 0:02:07.9]} 18. Bd3
{[%clk 0:02:05.1]} 18... d4 {[%clk 0:02:03.6]} 19. cxd4 {[%clk 0:01:57]} 19...
Bxf3 {[%clk 0:01:49.9]} 20. gxf3 {[%clk 0:01:56.2]} 20... cxd4 {[%clk
0:01:50.7]} 21. Qe2 {[%clk 0:01:39.5]} 21... Qe5 {[%clk 0:01:33.1]} 22. Bb1
{[%clk 0:01:14.6]} 22... dxe3 {[%clk 0:01:22.6]} 23. fxe3 {[%clk 0:01:15]} 23...
Rfe8 {[%clk 0:01:14.4]} 24. Bf2 {[%clk 0:01:07.4]} 24... Nd5 {[%clk 0:01:11.5]}
25. Qd3 {[%clk 0:00:59]} 25... Nf6 {[%clk 0:00:54]} 26. Qc2 {[%clk 0:00:54.9]}
26... Bc5 {[%clk 0:00:52.3]} 27. Rxd8 {[%clk 0:00:40.4]} 27... Rxd8 {[%clk
0:00:51.3]} 28. Qe2 {[%clk 0:00:32.1]} 28... Re8 {[%clk 0:00:38.3]} 29. e4
{[%clk 0:00:30.1]} 29... Nh5 {[%clk 0:00:35.8]} 30. Bg3 {[%clk 0:00:24.1]} 30...
Qg5 {[%clk 0:00:29.8]} 31. Bf2 {[%clk 0:00:15.9]} 31... Qc1+ {[%clk 0:00:25.7]}
32. Qd1 {[%clk 0:00:12.6]} 32... Bxf2+ {[%clk 0:00:24.6]} 33. Kxf2 {[%clk
0:00:13]} 33... Qxb2+ {[%clk 0:00:25.8]} 34. Qe2 {[%clk 0:00:13.3]} 34... Qd4+
{[%clk 0:00:26.4]} 35. Qe3 {[%clk 0:00:13.2]} 35... Qb2+ {[%clk 0:00:25.9]} 36.
Qe2 {[%clk 0:00:14.1]} 36... Qe5 {[%clk 0:00:23.2]} 37. Qe3 {[%clk 0:00:12.3]}
37... Rd8 {[%clk 0:00:21.2]} 38. Qe2 {[%clk 0:00:11.9]} 38... Nf4 {[%clk
0:00:21.5]} 39. Qc2 {[%clk 0:00:11.3]} 39... Nd3+ {[%clk 0:00:20.7]} 40. Kf1
{[%clk 0:00:10.9]} 40... Qf4 {[%clk 0:00:20.5]} 41. Qe2 {[%clk 0:00:11.2]} 41...
Nc1 {[%clk 0:00:19.8]} 42. Qg2 {[%clk 0:00:10]} 42... Rd1+ {[%clk 0:00:17.6]}
43. Kf2 {[%clk 0:00:11.1]} 43... Rd2+ {[%clk 0:00:18.6]} 44. Kf1 {[%clk
0:00:10.6]} 44... Rxg2 {[%clk 0:00:19.4]} 45. Kxg2 {[%clk 0:00:12.5]} 45... Qg5+
{[%clk 0:00:19.1]} 46. Kf2 {[%clk 0:00:13.2]} 46... Qd2+ {[%clk 0:00:14.6]} 47.
Kg3 {[%clk 0:00:13.4]} 47... Ne2+ {[%clk 0:00:16]} 48. Kh3 {[%clk 0:00:13]}
48... Nf4+ {[%clk 0:00:16.8]} 49. Kg3 {[%clk 0:00:14.2]} 49... g5 {[%clk
0:00:17.7]} 50. Rg1 {[%clk 0:00:14.5]} 50... Ne2+ {[%clk 0:00:18.2]} 0-1

[Event "*** Titled Tuesday Blitz"]
[Site "Chess.com"]
[Date "2018.06.05"]
[Round "2"]
[White "GrigorGrigorov"]
[Black "W_Amadeus"]
[Result "1/2-1/2"]
[WhiteElo "2677"]
[BlackElo "2508"]
[TimeControl "180+2"]
[EndTime "13:26:06 PDT"]
[Termination "Game drawn - insufficient material"]

1. d4 {[%clk 0:03:01.9]} 1... Nf6 {[%clk 0:03:00.7]} 2. Nf3 {[%clk 0:03:00.9]}
2... d5 {[%clk 0:03:01.1]} 3. c4 {[%clk 0:02:59.3]} 3... e6 {[%clk 0:03:02.2]}
4. g3 {[%clk 0:03:00.1]} 4... Bb4+ {[%clk 0:02:56.8]} 5. Bd2 {[%clk 0:03:00.8]}
5... Be7 {[%clk 0:02:57.5]} 6. Bg2 {[%clk 0:03:01.8]} 6... O-O {[%clk
0:02:57.6]} 7. O-O {[%clk 0:03:02.6]} 7... c6 {[%clk 0:02:51.6]} 8. Qc2 {[%clk
0:03:03.1]} 8... Nbd7 {[%clk 0:02:46.8]} 9. Rd1 {[%clk 0:03:03.4]} 9... b6
{[%clk 0:02:47.3]} 10. b3 {[%clk 0:03:03.8]} 10... Bb7 {[%clk 0:02:30.5]} 11.
Nc3 {[%clk 0:03:04]} 11... Rc8 {[%clk 0:02:16.2]} 12. e4 {[%clk 0:03:04.6]}
12... dxe4 {[%clk 0:02:15.5]} 13. Nxe4 {[%clk 0:03:04.9]} 13... c5 {[%clk
0:02:10.9]} 14. Nxf6+ {[%clk 0:02:57.7]} 14... Bxf6 {[%clk 0:01:58]} 15. Ng5
{[%clk 0:02:49.7]} 15... Bxg5 {[%clk 0:01:57.8]} 16. Bxb7 {[%clk 0:02:35.9]}
16... Rc7 {[%clk 0:01:58]} 17. Bxg5 {[%clk 0:02:35.6]} 17... Qxg5 {[%clk
0:01:58.1]} 18. dxc5 {[%clk 0:02:32.9]} 18... Nxc5 {[%clk 0:00:43]} 19. Bg2
{[%clk 0:02:31.3]} 19... g6 {[%clk 0:00:42.7]} 20. Qd2 {[%clk 0:02:27.5]} 20...
Qxd2 {[%clk 0:00:41.4]} 21. Rxd2 {[%clk 0:02:29.4]} 21... Rfc8 {[%clk
0:00:30.6]} 22. Rad1 {[%clk 0:02:29]} 22... Kf8 {[%clk 0:00:31.8]} 23. f4 {[%clk
0:02:01.6]} 23... Ke7 {[%clk 0:00:32.3]} 24. Kf2 {[%clk 0:02:01.9]} 24... a5
{[%clk 0:00:28.5]} 25. Ke3 {[%clk 0:02:01.3]} 25... Rd7 {[%clk 0:00:28.9]} 26.
Rxd7+ {[%clk 0:02:00.2]} 26... Nxd7 {[%clk 0:00:30.8]} 27. Bf1 {[%clk
0:01:51.2]} 27... Rd8 {[%clk 0:00:27.6]} 28. Be2 {[%clk 0:01:49.2]} 28... Nc5
{[%clk 0:00:24.7]} 29. Rxd8 {[%clk 0:01:42.4]} 29... Kxd8 {[%clk 0:00:26.6]} 30.
g4 {[%clk 0:01:43.7]} 30... h6 {[%clk 0:00:24.7]} 31. h4 {[%clk 0:01:43.9]}
31... Ke7 {[%clk 0:00:24.8]} 32. g5 {[%clk 0:01:45]} 32... hxg5 {[%clk
0:00:24.7]} 33. hxg5 {[%clk 0:01:44.9]} 33... Kd6 {[%clk 0:00:24.2]} 34. Kd4
{[%clk 0:01:44.1]} 34... Nd7 {[%clk 0:00:23.8]} 35. Bf3 {[%clk 0:01:31]} 35...
f6 {[%clk 0:00:18.4]} 36. gxf6 {[%clk 0:01:18.1]} 36... Nxf6 {[%clk 0:00:19.2]}
37. Be4 {[%clk 0:01:16.6]} 37... Nd7 {[%clk 0:00:16.2]} 38. Bxg6 {[%clk
0:01:11.3]} 38... e5+ {[%clk 0:00:17.3]} 39. fxe5+ {[%clk 0:01:12.6]} 39... Nxe5
{[%clk 0:00:19.2]} 40. Be4 {[%clk 0:01:13.7]} 40... Nd7 {[%clk 0:00:18.4]} 41.
Bg2 {[%clk 0:01:07]} 41... Nf6 {[%clk 0:00:15.7]} 42. Bf3 {[%clk 0:01:00.4]}
42... Nd7 {[%clk 0:00:15.7]} 43. Bg4 {[%clk 0:01:00.3]} 43... Nc5 {[%clk
0:00:13.7]} 44. Bf5 {[%clk 0:01:00.1]} 44... Na6 {[%clk 0:00:13.7]} 45. a3
{[%clk 0:01:00]} 45... Nc5 {[%clk 0:00:13.9]} 46. b4 {[%clk 0:00:58.8]} 46...
axb4 {[%clk 0:00:14.5]} 47. axb4 {[%clk 0:01:00.7]} 47... Na6 {[%clk 0:00:13.7]}
48. Kc3 {[%clk 0:01:00.4]} 48... Nc7 {[%clk 0:00:13.2]} 49. Be4 {[%clk 0:00:55]}
49... Ne6 {[%clk 0:00:13.8]} 50. Bd5 {[%clk 0:00:52.7]} 50... Nf4 {[%clk
0:00:12.1]} 51. Bg8 {[%clk 0:00:49.1]} 51... Ng6 {[%clk 0:00:12.5]} 52. Kd4
{[%clk 0:00:48.3]} 52... Ne7 {[%clk 0:00:10.9]} 53. Bd5 {[%clk 0:00:43.5]} 53...
Nf5+ {[%clk 0:00:11.9]} 54. Ke4 {[%clk 0:00:44.6]} 54... Ne7 {[%clk 0:00:12.7]}
55. Ba8 {[%clk 0:00:43.1]} 55... Ng6 {[%clk 0:00:12.8]} 56. Kf5 {[%clk
0:00:43.5]} 56... Ne5 {[%clk 0:00:12.6]} 57. c5+ {[%clk 0:00:34.5]} 57... bxc5
{[%clk 0:00:14.5]} 58. bxc5+ {[%clk 0:00:34.2]} 58... Kxc5 {[%clk 0:00:15.2]}
59. Kxe5 {[%clk 0:00:35.5]} 1/2-1/2